bitfinex-derivatives/quotes_BNBF0:USTF0_20250305
["timestamp","ask_amount","ask_price","bid_price","bid_amount"]
[1741168609009,0.2895247,601.41,600.58,0.28951265]
[1741168609203,0.2895247,601.41,600.59,0.27740902]
[1741168609407,2.61776061,601.4,600.59,0.27740902]
[1741168609606,2.61776061,601.39,600.59,0.27740902]
[1741168609909,2.61776061,601.38,600.59,0.27740902]
[1741168610108,2.61776061,601.37,600.59,0.27740902]
[1741168610304,2.61777974,601.36,600.6,0.27740287]
[1741168610602,0.95468688,601.35,600.61,0.27740287]
[1741168610808,0.95470278,601.34,600.56,0.28954638]
[1741168611107,1.19892308,601.35,600.57,0.27744141]
[1741168611311,0.9547089,601.34,600.57,0.27744141]
[1741168611503,1.19892308,601.35,600.57,0.27744141]
[1741168611705,0.95456925,601.34,600.57,0.27744141]
[1741168611905,0.28954638,601.36,600.57,0.27744141]
[1741168611906,1.19892308,601.33,600.57,0.27744141]
[1741168612102,1.19892308,601.33,600.58,0.27746191]
[1741168612303,1.19892308,601.33,600.59,0.27746191]
[1741168612609,1.19892308,601.32,600.6,0.27746191]
[1741168612810,1.19892308,601.32,600.57,0.27746191]
[1741168613009,1.19892308,601.31,600.58,0.27746191]
[1741168613210,0.28954638,601.36,600.59,0.27746191]
[1741168613505,0.95428115,601.35,600.6,0.27746191]
[1741168613713,1.91775449,601.42,599.9,0.27746191]
[1741168613911,0.28959698,601.36,600.56,0.28959698]
[1741168614111,1.1982292,601.35,600.57,0.27746191]
[1741168614314,1.1982292,601.35,599.9,0.27746191]
[1741168614510,1.1982292,601.35,599.91,0.27746191]
[1741168614710,0.28959698,601.36,599.92,0.27746191]
[1741168615017,0.28959698,601.36,600.06,1.22818455]
[1741168615207,0.28959698,601.36,600.07,0.27746191]
[1741168616615,7.30390708,601.78,600.07,0.27746191]
[1741168616817,0.28953072,601.36,600.07,0.27746191]
[1741168617218,7.30390708,601.75,600.08,0.27741477]
[1741168617417,7.30390708,601.74,600.03,0.27741477]
[1741168617613,7.30390708,601.73,600.04,0.27741477]
[1741168617818,7.30390708,601.72,600.05,0.27741477]
[1741168618119,7.30390708,601.71,600.06,0.27741477]
[1741168618315,7.30390708,601.7,600.07,0.27741477]
[1741168618519,7.30390708,601.69,600.08,0.27741477]
[1741168618719,7.30390708,601.69,600.02,1.22818455]
[1741168618720,7.30390708,601.68,600.44,1.22818455]
[1741168618914,7.30390708,601.67,600.45,0.27741477]
[1741168619118,6.804998,601.66,600.45,0.27741477]
[1741168619415,6.804998,601.65,600.46,0.27741477]
[1741168619722,9.92005699,601.64,600.47,0.27741477]
[1741168620017,2.61730692,601.63,600.48,0.27741477]
[1741168620320,2.61730692,601.62,600.49,0.27741477]
[1741168620620,3.81553612,601.61,600.35,1.22818455]
[1741168620921,2.61730692,601.6,600.36,0.27727213]
[1741168621113,1.66303029,601.59,600.37,0.27727213]
[1741168621314,0.95427663,601.58,600.38,0.27727213]
[1741168621519,1.1982292,601.59,600.39,0.27727213]
[1741168621720,2.61602417,601.58,600.4,0.27727213]
[1741168622015,2.61602417,601.58,600.41,0.27727213]
[1741168622016,2.61602417,601.57,600.41,0.27727213]
[1741168622215,2.61602417,601.56,600.36,0.27727213]
[1741168622420,2.61602417,601.56,600.35,1.22818455]
[1741168622421,3.81426707,601.55,600.37,0.27727213]
[1741168622620,0.95334617,601.54,600.38,0.27727213]
[1741168622820,0.95334617,601.54,599.62,2.5189937]
[1741168622821,1.1982292,601.55,600.44,1.22818455]
[1741168623015,1.48772499,601.55,600.45,0.27727213]
[1741168623320,2.15155329,601.54,600.46,0.27731284]
[1741168623520,1.1982292,601.54,600.45,0.27731284]
[1741168623720,1.1982292,601.54,600.46,0.27731284]
[1741168623919,1.1982292,601.54,600.47,0.27731284]
[1741168624116,1.1982292,601.54,600.45,0.27731284]
[1741168624317,1.1982292,601.53,600.46,0.27731284]
[1741168624520,1.1982292,601.53,600.49,1.22818455]
[1741168624721,1.1982292,601.53,600.5,0.27731284]
[1741168624924,0.28949579,601.55,600.5,0.27731284]
[1741168625221,0.9532975,601.54,600.5,0.27731284]
[1741168625522,6.6012275,601.73,600.5,0.27731284]
[1741168625717,7.30037976,601.72,600.5,0.27731284]
[1741168625923,0.28948135,601.53,600.51,0.27713787]
[1741168626119,4.68437727,601.7,600.5,0.27713787]
[1741168626323,9.91545893,601.69,600.57,1.22818455]
[1741168626520,6.80159356,601.68,600.58,0.27713787]
[1741168626715,6.80159356,601.67,600.58,0.27713787]
[1741168626916,6.80159356,601.66,600.58,0.27713787]
[1741168627120,3.11386537,601.67,600.58,0.27713787]
[1741168627121,6.80159356,601.65,600.58,0.27713787]
[1741168627423,6.80159356,601.64,600.58,0.27713787]
[1741168627623,6.80159356,601.63,600.58,0.27713787]
[1741168627921,5.72988685,601.62,600.58,0.27713787]
[1741168628123,2.61602148,601.61,600.58,0.27713787]
[1741168628319,2.61602148,601.6,600.58,1.50532242]
[1741168628517,3.81296025,601.59,600.59,0.27713787]
[1741168628722,1.19703558,601.59,600.59,0.27713787]
[1741168629019,0.95340466,601.58,600.59,0.27713787]
[1741168629222,1.19703558,601.57,600.59,0.27713787]
[1741168629422,1.19703558,601.57,600.6,0.27727404]
[1741168629619,1.19703558,601.56,600.59,0.27727404]
[1741168629823,1.19703558,601.56,600.6,0.27727404]
[1741168630027,1.19703558,601.56,600.61,0.27727404]
[1741168630221,0.28946329,601.59,600.59,0.27727404]
[1741168630421,0.95353978,601.58,600.6,0.27727404]
[1741168630618,0.28946329,601.59,600.59,0.27727404]
[1741168630819,1.19728384,601.58,600.6,0.27727404]
[1741168631220,1.19728384,601.57,600.61,0.27727404]
[1741168631419,1.19728384,601.57,600.62,0.27727404]
[1741168631625,0.28946329,601.59,600.45,0.27727404]
[1741168631825,0.28946329,601.59,600.46,0.27727404]
[1741168632126,1.1973523,601.58,600.47,0.27727404]
[1741168632320,1.1973523,601.58,600.45,0.27727404]
[1741168632528,1.1973523,601.58,600.46,0.27727404]
[1741168632725,0.28946329,601.59,600.45,0.27727404]
[1741168632920,0.28946329,601.59,600.44,0.28946329]
[1741168632921,0.28946329,601.59,600.46,0.27727404]
[1741168633228,0.28946329,601.59,600.47,0.27727404]
[1741168633527,0.28946329,601.59,600.48,0.27727404]
[1741168633721,0.28946329,601.59,600.49,0.27727404]
[1741168633922,0.28946329,601.59,600.45,0.27727404]
[1741168634522,4.6847067,601.94,600.45,0.27727404]
[1741168634726,7.30104659,601.93,600.46,0.27727404]
[1741168635025,0.28947171,601.58,600.47,0.27727404]
[1741168635221,7.30104659,601.91,600.45,0.27727404]
[1741168635525,7.30104659,601.9,600.46,0.27727404]
[1741168635731,7.30104659,601.89,600.47,0.27727404]
[1741168635927,7.30104659,601.88,600.45,0.27727404]
[1741168636128,7.30104659,601.87,600.46,0.27727404]
[1741168636328,7.30104659,601.86,600.47,0.27722099]
[1741168636523,7.30104659,601.85,600.48,0.27722099]
[1741168636729,7.30104659,601.84,600.49,0.27722099]
[1741168636930,7.30104659,601.83,600.45,0.27722099]
[1741168637132,7.30104659,601.82,600.46,0.27722099]
[1741168637332,7.30104659,601.81,600.45,0.27722099]
[1741168637530,7.30104659,601.8,600.46,0.27722099]
[1741168637729,7.30104659,601.79,600.47,0.27722099]
[1741168637930,7.30104659,601.78,600.65,1.22818455]
[1741168638128,7.30104659,601.77,600.66,0.27725251]
[1741168638428,7.30104659,601.76,600.66,0.27725251]
[1741168638633,7.30104659,601.75,600.66,0.27725251]
[1741168638828,7.30104659,601.74,600.66,0.27725251]
[1741168639134,7.30104659,601.73,600.66,0.27725251]
[1741168639330,7.30104659,601.72,600.66,0.27725251]
[1741168639534,7.30104659,601.71,600.66,0.27725251]
[1741168639733,7.30104659,601.7,600.67,0.27729431]
[1741168639935,7.30104659,601.69,600.66,0.27729431]
[1741168640133,3.11451435,601.71,600.67,0.27729431]
[1741168640134,7.30104659,601.68,600.67,0.27729431]
[1741168640335,7.30104659,601.67,600.5,0.27729431]
[1741168640533,7.30104659,601.66,600.51,0.27729431]
[1741168640833,7.30104659,601.65,600.52,0.27729431]
[1741168641135,7.30104659,601.64,600.53,0.27729431]
[1741168641332,7.30104659,601.63,600.54,0.27729431]
[1741168641530,6.80230367,601.62,600.55,0.27739525]
[1741168641727,6.80230367,601.61,600.5,0.27739525]
[1741168641932,6.80230367,601.6,600.51,0.27739525]
[1741168642233,6.80261131,601.59,600.52,0.27739525]
[1741168642433,6.80261131,601.58,600.53,1.22818455]
[1741168642628,9.91712566,601.57,600.54,0.27739525]
[1741168642834,6.80261131,601.56,600.54,0.27739525]
[1741168643034,8.7194411,601.55,600.54,0.27739525]
[1741168643236,6.80261131,601.54,600.54,0.27739525]
[1741168643428,9.91712566,601.53,600.54,0.27739525]
[1741168643734,6.80261131,601.52,600.54,0.27739525]
[1741168643939,6.80261131,601.51,600.54,0.27739525]
[1741168644241,9.91712566,601.5,600.54,0.27739525]
[1741168644534,6.80261131,601.49,600.59,1.22818455]
[1741168644734,10.24963879,601.48,600.6,0.27739525]
[1741168644933,6.80261131,601.47,600.6,0.27739525]
[1741168645132,6.80261131,601.46,600.6,0.27739525]
[1741168645332,6.80261131,601.45,600.6,0.27739525]
[1741168645535,6.80261131,601.44,600.6,0.27739525]
[1741168645731,6.80261131,601.43,600.6,0.27739525]
[1741168645937,6.80261131,601.42,600.6,0.27739525]
[1741168646135,2.61645921,601.41,600.6,0.27739525]
[1741168646332,2.61645921,601.4,600.6,0.27739525]
[1741168646636,2.61645921,601.39,600.62,1.22818455]
[1741168646836,2.61645921,601.38,600.63,0.27741504]
[1741168647036,2.61645921,601.37,600.63,0.27741504]
[1741168647237,2.61645921,601.36,600.63,0.27741504]
[1741168647436,2.61645921,601.35,600.63,0.27741504]
[1741168647639,2.61645921,601.34,600.63,0.27741504]
[1741168647834,0.95386508,601.33,600.63,0.27741504]
[1741168648037,1.19768456,601.34,600.63,0.27741504]
[1741168648239,2.61999111,601.33,600.63,0.27741504]
[1741168648436,2.61999111,601.33,600.62,1.22818455]
[1741168648437,0.95710882,601.32,600.62,1.22818455]
[1741168648738,1.19768456,601.33,600.68,1.22818455]
[1741168648936,1.19768456,601.33,600.69,0.27735044]
[1741168649538,1.66290598,601.32,600.69,0.27735044]
[1741168650142,1.66290598,601.32,600.68,1.22818455]
[1741168650336,2.62107531,601.31,600.69,0.27735117]
[1741168650841,2.62107531,601.3,600.71,1.22818455]
[1741168651040,2.62107531,601.3,600.72,0.27735117]
[1741168651543,0.95816933,601.3,600.72,0.27735117]
[1741168651740,7.31467945,601.29,600.72,0.27735117]
[1741168651941,1.19768456,601.33,600.73,0.27746563]
[1741168651942,6.81573912,601.28,600.73,0.27746563]
[1741168652142,6.81573912,601.27,600.74,0.27746563]
[1741168652442,6.81573912,601.26,600.75,0.27746563]
[1741168652638,6.81573912,601.25,600.72,0.27746563]
[1741168652842,9.93840758,601.24,600.73,0.27746563]
[1741168653042,6.81573912,601.23,600.74,0.27746563]
[1741168653241,2.62143812,601.22,600.75,0.27746563]
[1741168653442,5.74410658,601.21,600.76,0.27746563]
[1741168653739,2.62143812,601.2,600.77,0.27746563]
[1741168653945,2.62143812,601.19,600.78,0.27746563]
[1741168654148,2.62143812,601.18,600.78,0.27746563]
[1741168654350,3.81917222,601.17,600.79,0.27746563]
[1741168654551,1.19768456,601.17,600.6,0.27746563]
[1741168654750,0.95799437,601.16,600.61,0.27746563]
[1741168654952,2.62119584,601.15,600.62,0.27746563]
[1741168655145,3.8188804,601.14,600.6,0.27746563]
[1741168655348,2.62119584,601.13,600.61,0.27746563]
[1741168655551,0.95799437,601.12,600.55,0.27746563]
[1741168655751,1.19768456,601.12,600.56,0.27746563]
[1741168655951,1.19768456,601.12,600.55,0.27746563]
[1741168656153,1.19768456,601.12,600.56,0.27746563]
[1741168656355,1.19768456,601.11,600.55,0.27746563]
[1741168656550,1.19768456,601.11,600.56,0.27746563]
[1741168656751,1.19768456,601.11,600.55,0.27746563]
[1741168656947,1.19768456,601.11,600.56,0.27746563]
[1741168657257,0.28958493,601.24,600.57,0.27760421]
[1741168657549,6.81473883,601.23,600.58,0.27760421]
[1741168657749,6.81473883,601.22,600.59,0.27760421]
[1741168657953,9.94150243,601.21,600.6,0.27760421]
[1741168658149,6.81473883,601.2,600.61,0.27760421]
[1741168658353,4.1534677,601.19,600.45,0.27760421]
[1741168658555,5.74781699,601.18,600.45,0.27760421]
[1741168658751,2.62105339,601.17,600.41,0.27760421]
[1741168658953,0.95775894,601.16,600.47,1.22818455]
[1741168659151,2.62103468,601.15,600.48,0.27760421]
[1741168659351,0.95775894,601.14,600.48,0.27760421]
[1741168659551,1.20260138,601.15,600.48,0.27760421]
[1741168659755,0.9575652,601.14,600.48,0.27760421]
[1741168659952,1.20260138,601.15,600.48,0.27760421]
[1741168660149,1.20260138,601.13,600.48,0.27760421]
[1741168660955,0.28958975,601.24,600.46,0.27760421]
[1741168661153,0.28958975,601.24,600.47,0.27760421]
[1741168661355,0.28958975,601.24,600.45,1.22818455]
[1741168661356,0.28958975,601.24,600.46,0.27760421]
[1741168661557,0.28958975,601.24,600.47,0.27760421]
[1741168661759,0.28958975,601.24,600.46,0.27760421]
[1741168661958,0.28958975,601.24,600.47,0.27760421]
[1741168662152,0.28958975,601.24,600.46,0.27760421]
[1741168662356,0.28958975,601.24,600.47,0.27760421]
[1741168662659,0.28958975,601.24,600.48,0.27760421]
[1741168662862,0.28958975,601.24,600.45,0.27760421]
[1741168664558,4.69149772,601.46,600.45,0.27760421]
[1741168664760,0.28956445,601.24,600.46,0.27760421]
[1741168665059,7.14550374,601.23,600.34,1.22818455]
[1741168665257,7.14550928,601.22,600.35,0.27785819]
[1741168665559,7.14551481,601.21,600.35,0.27785819]
[1741168665763,7.14552034,601.2,600.35,0.27785819]
[1741168665953,7.14698113,601.19,600.35,0.27785819]
[1741168666153,4.15222172,601.18,600.35,0.27785819]
[1741168666354,2.62088753,601.17,600.36,0.27785819]
[1741168666560,6.81335646,601.16,600.37,0.27785819]
[1741168666861,7.14617021,601.15,600.38,0.27785819]
[1741168667059,7.64534943,601.14,600.15,0.28973079]
[1741168667256,7.64535496,601.13,600.16,0.27785819]
[1741168667454,7.6453605,601.12,600.16,0.27785819]
[1741168667657,7.64536603,601.11,600.16,0.27785819]
[1741168667860,7.31264823,601.1,600.16,0.27785819]
[1741168668056,7.31264823,601.09,600.16,0.27785819]
[1741168668255,6.81347455,601.08,600.16,0.27785819]
[1741168668460,6.81347455,601.07,600.16,0.27785819]
[1741168668660,6.81347455,601.06,600.16,0.27785819]
[1741168668961,6.810509,601.05,600.16,0.27785819]
[1741168669157,6.810509,601.04,600.16,0.27785819]
[1741168669365,7.27369953,601.03,600.16,0.27785819]
[1741168669565,2.61937757,601.02,600.16,0.27785819]
[1741168669762,2.61937757,601.01,600.16,0.27785819]
[1741168670057,2.61937757,601.0,600.16,0.27785819]
[1741168670261,2.61937757,600.99,600.16,0.27785819]
[1741168670462,2.61937757,600.98,600.16,0.27785819]
[1741168670658,2.61937757,600.97,600.16,0.27785819]
[1741168670858,0.9555739,600.96,600.16,0.27785819]
[1741168671061,1.20207835,600.98,600.16,0.27785819]
[1741168671261,0.95440985,600.97,600.16,0.27785819]
[1741168671463,0.95440985,600.96,600.16,0.27785819]
[1741168671663,1.20207835,600.97,600.16,0.27785819]
[1741168671967,1.20207835,600.95,600.16,0.27785819]
[1741168672461,1.9168141,601.05,600.16,0.27785819]
[1741168672766,2.61794621,601.04,600.16,0.27785819]
[1741168672969,2.61794621,601.03,600.16,0.27785819]
[1741168673170,2.61794621,601.02,600.16,0.27785819]
[1741168673372,2.61794621,601.01,600.16,0.27785819]
[1741168673669,2.15185966,601.0,600.16,0.27785819]
[1741168673871,1.19788259,601.0,600.17,0.27785819]
[1741168674070,1.19788259,601.0,600.16,0.27785819]
[1741168674371,1.19788259,600.99,600.17,0.27785819]
[1741168674571,1.19788259,600.99,600.18,0.27785819]
[1741168674773,1.19788259,600.98,600.16,0.27785819]
[1741168674967,1.19788259,600.98,600.17,0.27785819]
[1741168675170,1.19788259,600.98,600.16,0.27785819]
[1741168675365,1.19788259,600.98,600.17,0.27785819]
[1741168675567,0.28972114,601.01,600.16,0.27785819]
[1741168675767,0.28972114,601.01,600.17,0.27785819]
[1741168675967,0.28972114,601.01,600.18,0.27785819]
[1741168676167,0.28972114,601.01,600.16,0.27785819]
[1741168676370,0.28972114,601.01,600.17,0.27785819]
[1741168676566,0.28972114,601.01,600.16,0.27785819]
[1741168681473,0.3327178,601.11,600.16,0.27785819]
[1741168681872,0.3327178,601.11,600.17,0.27785819]
[1741168682077,0.3327178,601.11,600.18,0.27785819]
[1741168682477,0.3327178,601.11,600.19,0.27785819]
[1741168682775,0.3327178,601.11,600.24,1.22818455]
[1741168682971,0.3327178,601.11,600.25,0.27785819]
[1741168683572,0.3327178,601.11,600.24,1.22818455]
[1741168684773,0.3327178,601.11,600.19,0.28964518]
[1741168684774,0.3327178,601.11,600.26,1.22818455]
[1741168684977,0.3327178,601.11,600.27,0.27855632]
[1741168686780,1.1958901,601.1,600.27,0.27855632]
[1741168686976,1.1958901,601.1,600.24,0.27855632]
[1741168687193,1.1958901,601.1,600.25,0.27855632]
[1741168687383,1.1958901,601.1,600.23,1.22818455]
[1741168687384,0.3327178,601.11,600.24,0.27855632]
[1741168688484,0.3327178,601.11,600.25,0.27855632]
[1741168688683,0.3327178,601.11,600.24,0.27855632]
[1741168688984,0.3327178,601.11,600.26,1.22818455]
[1741168689183,0.95254709,601.1,600.27,0.27855632]
[1741168689380,0.3327178,601.11,600.27,0.27855632]
[1741168689575,2.6152089,601.1,600.27,0.27855632]
[1741168689784,2.94793777,601.09,600.27,0.27855632]
[1741168690081,2.6152089,601.08,600.27,0.27855632]
[1741168690285,1.5289297,601.09,600.26,1.22818455]
[1741168690286,2.6152089,601.07,600.26,1.22818455]
[1741168690580,2.6152089,601.06,600.27,0.27928996]
[1741168690884,4.14416074,601.05,600.27,0.27928996]
[1741168691081,2.94796545,601.04,600.2,0.27928996]
[1741168691282,2.6152089,601.03,600.21,0.27928996]
[1741168691484,2.6152089,601.02,600.22,0.27928996]
[1741168691677,0.95257196,601.01,600.23,0.27928996]
[1741168691987,0.95257196,601.01,600.19,1.22818455]
[1741168691988,0.28970788,601.02,600.24,0.27928996]
[1741168692182,1.19620083,601.0,600.2,0.27928996]
[1741168692381,1.19620083,601.0,600.21,0.27928996]
[1741168692577,1.19620083,601.0,600.22,0.27928996]
[1741168692781,1.19620083,601.0,600.23,0.27928996]
[1741168692982,1.19620083,601.0,600.14,0.27928996]
[1741168693185,2.14903051,600.99,600.15,0.27928996]
[1741168693384,1.19620083,600.99,600.14,0.27928996]
[1741168693586,1.19620083,600.99,600.15,0.27928996]
[1741168693780,0.28970788,601.02,600.13,0.28970305]
[1741168693781,1.19620083,600.98,600.14,0.27928996]
[1741168693979,1.19620083,600.98,600.15,0.27928996]
[1741168694185,1.19620083,600.98,600.16,0.27928996]
[1741168694384,1.19620083,600.98,600.14,0.27928996]
[1741168694579,1.19620083,600.98,600.15,0.27928996]
[1741168694784,0.28977542,600.97,600.12,0.28977542]
[1741168694984,1.48597625,600.97,600.13,0.27928996]
[1741168695482,0.28977542,600.97,600.13,0.27928996]
[1741168697588,0.62257073,600.97,600.13,0.27928996]
[1741168697889,1.19747829,600.96,600.13,0.27928996]
[1741168698786,0.62257073,600.97,600.13,0.27928996]
[1741168699586,0.62257073,600.97,600.1,0.27928996]
[1741168699785,0.62257073,600.97,600.11,0.27928996]
[1741168699985,0.62257073,600.97,600.1,0.27928996]
[1741168700189,0.62257073,600.97,600.11,0.27928996]
[1741168700382,0.62257073,600.97,600.1,0.27928996]
[1741168700587,0.62257073,600.97,600.11,0.27928996]
[1741168700783,0.62257073,600.97,600.1,0.27928996]
[1741168700982,0.62257073,600.97,600.11,0.27946914]
[1741168701288,0.62257073,600.97,600.12,0.27946914]
[1741168701489,0.62257073,600.97,600.28,1.22818455]
[1741168701788,0.62257073,600.97,600.29,0.27946914]
[1741168702692,0.62257073,600.97,600.28,1.22818455]
[1741168702890,0.62257073,600.97,600.29,0.27964868]
[1741168703687,0.33279531,600.97,600.29,1.50783323]
[1741168703888,0.95502939,600.96,600.3,0.27964868]
[1741168704086,1.1992132,600.96,600.3,0.27964868]
[1741168704288,2.95237495,600.95,600.3,0.27964868]
[1741168704492,7.14229252,600.94,600.3,0.27964868]
[1741168704695,7.14229806,600.93,600.3,0.27964868]
[1741168704995,7.1423036,600.92,600.3,0.27964868]
[1741168705190,7.14443097,600.91,600.3,0.27964868]
[1741168705393,7.14443651,600.9,600.3,0.27964868]
[1741168705594,7.14444205,600.89,600.31,0.27968801]
[1741168705790,6.81160243,600.88,600.32,0.27968801]
[1741168705990,6.81160243,600.87,600.33,0.27968801]
[1741168706189,6.81160243,600.86,600.3,0.27968801]
[1741168706391,6.81160243,600.85,600.31,0.27968801]
[1741168706594,4.14847046,600.84,600.32,0.27968801]
[1741168706797,4.48117557,600.83,600.05,1.22818455]
[1741168706996,2.61984709,600.82,600.05,1.22818455]
[1741168707190,2.95273103,600.81,600.06,0.27974306]
[1741168707396,4.15194977,600.8,600.06,0.27974306]
[1741168707598,2.61984709,600.79,600.06,0.27974306]
[1741168707799,3.45157671,600.8,600.06,0.27974306]
[1741168707800,2.61984709,600.78,600.06,0.27974306]
[1741168708097,2.61984709,600.77,600.06,0.27974306]
[1741168708292,2.61984709,600.76,600.06,0.27974306]
[1741168708495,2.61984709,600.76,599.9,1.22818455]
[1741168708496,2.15460281,600.75,599.91,0.27974306]
[1741168708695,0.95539747,600.74,599.91,0.27974306]
[1741168708898,1.1992132,600.75,599.91,0.27974306]
[1741168709091,1.1992132,600.73,599.91,0.27974306]
[1741168709698,0.33288948,600.8,599.91,0.27974306]
[1741168709900,2.61986231,600.79,599.91,0.27974306]
[1741168710205,2.61986231,600.78,599.91,0.27974306]
[1741168710507,2.61986231,600.77,599.91,0.27974306]
[1741168710701,2.61986231,600.76,599.86,0.27974306]
[1741168710904,0.95523791,600.75,599.88,0.28983697]
[1741168711102,1.19948551,600.74,599.89,0.27974306]
[1741168711506,0.28983697,600.77,599.89,0.27974306]
[1741168711701,0.33288948,600.8,599.89,0.27974306]
[1741168712408,0.33288948,600.8,600.01,1.22818455]
[1741168712608,1.19931113,600.79,600.02,0.27974306]
[1741168713403,0.33288948,600.8,600.02,0.27974306]
[1741168714910,1.19956859,600.79,600.03,0.27974306]
[1741168715110,2.61987495,600.78,600.03,0.27974306]
[1741168715310,2.61987495,600.77,600.04,0.27974306]
[1741168715511,0.95537528,600.76,600.02,0.27974306]
[1741168715707,1.19956859,600.75,600.03,0.27974306]
[1741168715906,1.19956859,600.75,600.04,0.27974306]
[1741168716106,1.19956859,600.75,600.02,0.27974306]
[1741168716307,1.19956859,600.75,600.03,0.27974306]
[1741168716507,1.19956859,600.75,600.04,0.27974306]
[1741168716812,0.33288948,600.8,600.05,0.27974306]
[1741168716813,1.19956859,600.74,600.05,0.27974306]
[1741168717009,1.19956859,600.74,599.89,0.27974306]
[1741168717209,1.19956859,600.74,599.9,0.27974306]
[1741168717410,0.33288948,600.8,599.91,0.27974306]
[1741168717612,2.62003723,600.79,599.92,0.27974306]
[1741168717812,2.62003723,600.78,599.93,0.27974306]
[1741168718014,2.62003723,600.77,599.94,0.27974306]
[1741168718211,2.62003723,600.76,599.95,0.27974306]
[1741168718409,1.19973559,600.77,599.96,0.27974306]
[1741168718607,0.95549452,600.76,599.97,0.27974306]
[1741168718810,0.95549452,600.76,599.98,0.27974306]
[1741168718811,1.19973559,600.76,599.98,0.27974306]
[1741168719011,1.19973559,600.76,599.99,0.27974306]
[1741168719214,1.19973559,600.76,600.0,0.27974306]
[1741168719413,2.15537904,600.75,599.89,0.27974306]
[1741168719614,1.19973559,600.75,599.9,0.27974306]
[1741168719814,1.19973559,600.75,599.91,0.27974306]
[1741168720115,1.19973559,600.74,599.92,0.27974306]
[1741168720309,1.19973559,600.74,599.93,0.27974306]
[1741168720509,0.33288948,600.8,600.06,1.22818455]
[1741168720708,0.33288948,600.8,600.07,0.27974306]
[1741168721817,0.28978749,600.79,600.07,0.27974306]
[1741168722610,0.28978749,600.79,599.98,0.27974306]
[1741168724816,0.33288948,600.8,599.98,0.27974306]
[1741168725022,0.28980197,600.78,599.98,0.27974306]
[1741168725425,0.28980197,600.78,599.99,1.22818455]
[1741168725623,0.28980197,600.78,600.0,0.27974306]
[1741168725917,0.28980197,600.78,600.01,0.27959362]
[1741168726115,0.28980197,600.78,600.0,0.27959362]
[1741168726315,0.28980197,600.78,600.01,0.27959362]
[1741168726522,0.28980197,600.78,600.0,0.27959362]
[1741168726717,0.28980197,600.78,600.01,0.27959362]
[1741168726916,4.32788692,600.77,600.02,0.27959362]
[1741168727123,4.32788692,600.76,600.03,0.27959362]
[1741168727323,1.66457189,600.75,600.01,1.22818455]
[1741168727517,1.66457189,600.74,600.04,0.27959362]
[1741168727723,3.12248132,600.75,600.01,1.22818455]
[1741168727724,2.62108707,600.73,600.05,0.27959362]
[1741168727917,2.62108707,600.72,600.02,0.27959362]
[1741168728127,2.62108707,600.71,600.03,0.27959362]
[1741168728424,2.62108707,600.7,600.04,0.27959362]
[1741168728723,2.62108707,600.69,600.05,0.27959362]
[1741168728927,0.95651518,600.68,600.02,0.27959362]
[1741168729122,1.20112119,600.68,600.06,0.27959362]
[1741168729326,1.20112119,600.68,599.96,0.28980318]
[1741168729327,1.20112119,600.68,600.07,0.27959362]
[1741168729522,1.20112119,600.67,599.97,0.27959362]
[1741168729730,1.20112119,600.67,599.98,0.27959362]
[1741168729922,1.20112119,600.67,599.97,0.27959362]
[1741168730124,1.20112119,600.67,599.98,0.27959362]
[1741168730328,1.20112119,600.67,599.97,0.27959362]
[1741168730530,0.33288948,600.8,599.98,0.27959362]
[1741168730723,0.28982852,600.78,599.96,0.28982852]
[1741168730923,6.81447605,600.77,599.97,0.27959362]
[1741168731126,6.81447605,600.76,599.97,0.27959362]
[1741168731326,7.27341857,600.75,599.97,0.27959362]
[1741168731627,2.62095233,600.74,599.97,0.27959362]
[1741168731928,3.82183775,600.73,599.97,0.27959362]
[1741168732129,2.62095233,600.72,599.97,0.27959362]
[1741168732327,2.62095233,600.71,599.97,0.27959362]
[1741168732631,2.62095233,600.7,599.97,0.27959362]
[1741168732834,0.95635259,600.69,599.97,0.27959362]
[1741168733029,1.20088542,600.71,599.97,0.27959362]
[1741168733228,1.20088542,600.68,599.97,0.27959362]
[1741168734029,0.28983455,600.78,599.96,0.28983455]
[1741168734229,6.81419134,600.77,599.97,0.27959362]
[1741168734431,4.1508373,600.76,599.97,0.27959362]
[1741168734632,5.74275187,600.75,599.96,0.28983455]
[1741168734830,3.12190905,600.75,599.97,0.27965048]
[1741168735031,3.12190905,600.74,599.97,1.50783503]
[1741168735331,3.12190905,600.74,599.98,0.27965048]
[1741168736032,0.28983455,600.78,599.98,0.27965048]
[1741168736426,1.20071838,600.77,599.98,0.27965048]
[1741168737132,1.20071838,600.76,599.98,0.27965048]
[1741168737632,1.20071838,600.76,599.99,1.22818455]
[1741168737932,0.28980197,600.78,600.0,0.27965048]
[1741168738341,1.20075633,600.77,600.0,0.27965048]
[1741168738936,0.28980197,600.78,600.0,0.27965048]
[1741168739329,0.28980197,600.78,599.97,0.27965048]
[1741168739635,0.33288948,600.8,599.98,0.27965048]
[1741168739829,1.20089531,600.77,599.91,0.27965048]
[1741168740031,1.20089531,600.77,599.96,0.28981042]
[1741168740234,1.20089531,600.77,599.97,0.27965048]
[1741168740534,0.28981042,600.78,599.97,0.27965048]
[1741168741735,1.20109248,600.77,599.97,0.27965048]
[1741168741936,2.62111777,600.76,599.97,0.27965048]
[1741168742132,2.62111777,600.75,599.97,0.27965048]